fUSD/lending_fUSD_20250606
["ID","MTS","AMOUNT","RATE_DAILY","PERIOD"]
[364806457,1749246668683,-480.0,0.00028219,5]
[364806458,1749246668694,-866.52,0.00028219,5]
[364806459,1749246668703,-978.55,0.00028219,5]
[364806460,1749246668713,-480.0,0.00028219,5]
[364806461,1749246668722,-480.0,0.00028219,5]
[364806462,1749246668731,-522.25889901,0.00028219,5]
[364806463,1749246668741,-480.0,0.00028219,5]
[364806464,1749246668750,-3108.49,0.00028219,5]
[364806465,1749246668759,-480.0,0.00028219,5]
[364806466,1749246668768,-1300.77,0.00028219,5]
[364806467,1749246668777,-480.0,0.00028219,5]
[364806468,1749246668786,-2680.22,0.00028219,5]
[364806469,1749246668796,-480.0,0.00028219,5]
[364806470,1749246668806,-1437.98,0.00028219,5]
[364806471,1749246668815,-480.0,0.00028219,5]
[364806472,1749246668825,-519.51,0.00028219,5]
[364806473,1749246668835,-509.64,0.00028219,5]
[364806474,1749246668844,-480.0,0.00028219,5]
[364806475,1749246668853,-9520.94,0.00028219,5]
[364806476,1749246668862,-480.0,0.00028219,5]
[364806477,1749246668871,-480.0,0.00028219,5]
[364806478,1749246668880,-480.0,0.00028219,5]
[364806479,1749246668889,-480.0,0.00028219,5]
[364806480,1749246668898,-451.40609965,0.00028219,5]
[364806481,1749246668907,-1288.3,0.00028219,5]
[364806482,1749246668916,-1532.11,0.00028219,5]
[364806483,1749246668925,-539.78,0.00028219,5]
[364806484,1749246668935,-1411.14,0.00028219,5]
[364806485,1749246668944,-1226.65,0.00028219,5]
[364806486,1749246668953,-480.0,0.00028219,5]
[364806487,1749246668962,-11376.28,0.00028219,5]
[364806488,1749246668971,-480.0,0.00028219,5]
[364806489,1749246668981,-745.67,0.00028219,5]
[364806490,1749246668991,-480.0,0.00028219,5]
[364806491,1749246669001,-480.0,0.00028219,5]
[364806492,1749246669010,-1096.92,0.00028219,5]
[364806493,1749246669019,-480.0,0.00028219,5]
[364806494,1749246669028,-480.0,0.00028219,5]
[364806495,1749246669038,-1261.97,0.00028219,5]
[364806496,1749246669047,-1625.92,0.00028219,5]
[364806497,1749246669058,-480.0,0.00028219,5]
[364806498,1749246669067,-480.0,0.00028219,5]
[364806499,1749246669076,-550.84,0.00028219,5]
[364806500,1749246669085,-483.94,0.00028219,5]
[364806501,1749246669094,-5339.23,0.00028219,5]
[364806502,1749246669104,-1348.87,0.00028219,5]
[364806503,1749246669113,-340.484986,0.00028219,5]
[364806504,1749246669122,-828.64,0.00028219,5]
[364806505,1749246669132,-480.0,0.00028219,5]
[364806506,1749246669141,-489.87,0.00028219,5]
[364806507,1749246669151,-1697.96,0.00028219,5]
[364806508,1749246669160,-1051.18,0.00028219,5]
[364806509,1749246669170,-1189.86,0.00028219,5]
[364806510,1749246669179,-480.0,0.00028219,2]
[364806511,1749246669188,-633.51,0.00028219,5]
[364806512,1749246669198,-480.0,0.00028219,5]
[364806513,1749246669207,-480.0,0.00028219,5]
[364806514,1749246669217,-480.0,0.00028219,5]
[364806515,1749246669226,-2333.6,0.00028219,5]
[364806516,1749246669236,-480.0,0.00028219,2]
[364806517,1749246669245,-551.67,0.00028219,5]
[364806518,1749246669255,-765.3,0.00028219,5]
[364806519,1749246669264,-2754.5,0.00028219,5]
[364806520,1749246669273,-1846.24,0.00028219,5]
[364806521,1749246669282,-1431.03,0.00028219,5]
[364806522,1749246669291,-1044.17,0.00028219,5]
[364806523,1749246669301,-1138.5,0.00028219,5]
[364806524,1749246669311,-480.0,0.00028219,5]
[364806525,1749246669320,-917.53755264,0.00028242,2]
[364806526,1749246669329,-9584.69991423,0.0002825,2]
[364806527,1749246669338,-150.0,0.00028256,2]
[364806528,1749246669348,-150.0,0.0002826,2]
[364806529,1749246669357,-150.0,0.00028281,2]
[364806530,1749246669366,-1000.0,0.00028321,5]
[364806531,1749246669376,-1000.0,0.00028321,5]
[364806532,1749246669385,-500.0,0.00028321,5]
[364806533,1749246669394,-500.27068717,0.00028321,5]
[364806534,1749246669403,-988.10353959,0.00028321,5]
[364806535,1749246669414,-166.78,0.00028369,2]
[364806536,1749246669424,-1000.0,0.0002837,2]
[364806537,1749246669433,-150.0,0.0002838,2]
[364806538,1749246669443,-1302.85,0.00028382,5]
[364806539,1749246669452,-1394.62,0.00028382,5]
[364806540,1749246669461,-1628.97,0.00028382,5]
[364806541,1749246669470,-480.0,0.00028383,5]
[364806542,1749246669479,-480.0,0.00028383,5]
[364806543,1749246669489,-520.36386006,0.00028383,5]
[364806544,1749246669498,-385.50782476,0.00028383,5]
[364806545,1749246669509,-600.0,0.00028383,30]
[364806546,1749246669519,-885.44,0.00028383,5]
[364806547,1749246669529,-480.0,0.00028383,5]
[364806548,1749246669539,-480.0,0.00028383,5]
[364806549,1749246669550,-480.0,0.00028383,5]
[364806550,1749246669560,-480.0,0.00028383,5]
[364806551,1749246669569,-621.89,0.00028383,5]
[364806552,1749246669578,-480.0,0.00028383,5]
[364806553,1749246669587,-493.2,0.00028383,5]
[364806554,1749246669596,-480.0,0.00028383,5]
[364806555,1749246669606,-480.0,0.00028383,5]
[364806556,1749246669619,-480.0,0.00028383,5]
[364806557,1749246669628,-480.0,0.00028383,5]
[364806558,1749246669637,-480.0,0.00028383,5]
[364806559,1749246669647,-480.0,0.00028383,5]
[364806560,1749246669657,-480.0,0.00028383,5]
[364806561,1749246669666,-480.0,0.00028383,5]
[364806562,1749246669675,-415.24672384,0.00028383,5]
[364806563,1749246669685,-2585.128,0.00028383,19]
[364806564,1749246669694,-187.485,0.00028383,19]
[364806565,1749246669704,-480.0,0.00028383,5]
[364806566,1749246669713,-480.0,0.00028383,5]
[364806567,1749246669722,-480.0,0.00028383,5]
[364806568,1749246669731,-379.08833747,0.00028383,5]
[364806569,1749246669740,-480.0,0.00028383,5]
[364806570,1749246669749,-480.0,0.00028383,5]
[364806571,1749246669758,-480.0,0.00028383,5]
[364806572,1749246669767,-480.0,0.00028383,5]
[364806573,1749246669776,-1372.88,0.00028383,5]
[364806574,1749246669785,-964.82,0.00028383,5]
[364806575,1749246669794,-480.0,0.00028383,5]
[364806576,1749246669803,-748.95,0.00028383,5]
[364806577,1749246669813,-480.0,0.00028383,5]
[364806578,1749246669822,-480.0,0.00028383,5]
[364806579,1749246669831,-422.2022803,0.00028383,5]
[364806580,1749246669840,-498.72,0.00028383,5]
[364806581,1749246669849,-480.0,0.00028383,5]
[364806582,1749246669858,-194.1977872,0.00028383,30]
[364806583,1749246669867,-480.0,0.00028383,5]
[364806584,1749246669876,-944.11,0.00028383,5]
[364806585,1749246669886,-521.05,0.00028383,5]
[364806586,1749246669895,-480.0,0.00028383,5]
[364806587,1749246669904,-1064.79,0.00028383,5]
[364806588,1749246669913,-480.0,0.00028383,5]
[364806589,1749246669923,-480.0,0.00028383,5]
[364806590,1749246669932,-1499.94,0.00028383,5]
[364806591,1749246669941,-742.55,0.00028383,5]
[364806592,1749246669950,-480.0,0.00028383,5]
[364806593,1749246669960,-609.61,0.00028383,5]
[364806594,1749246669970,-480.0,0.00028383,5]
[364806595,1749246669979,-1158.5,0.00028383,5]
[364806596,1749246669988,-480.0,0.00028383,5]
[364806597,1749246669999,-480.0,0.00028383,5]
[364806598,1749246670008,-480.0,0.00028383,5]
[364806599,1749246670017,-480.0,0.00028383,5]
[364806600,1749246670026,-584.43,0.00028383,5]
[364806601,1749246670035,-675.4,0.00028383,5]
[364806602,1749246670044,-840.68,0.00028383,5]
[364806603,1749246670053,-480.0,0.00028383,5]
[364806604,1749246670062,-654.36,0.00028383,5]
[364806605,1749246670071,-881.61,0.00028383,5]
[364806606,1749246670079,-866.2,0.00028383,5]
[364806607,1749246670088,-480.0,0.00028383,5]
[364806608,1749246670097,-480.0,0.00028383,5]
[364806609,1749246670106,-480.0,0.00028383,5]
[364806610,1749246670115,-480.0,0.00028383,5]
[364806611,1749246670124,-484.77,0.00028383,5]
[364806612,1749246670133,-555.59,0.00028383,5]
[364806613,1749246670142,-480.0,0.00028383,5]
[364806614,1749246670150,-480.0,0.00028383,5]
[364806615,1749246670159,-480.0,0.00028383,5]
[364806616,1749246670170,-480.0,0.00028383,5]
[364806617,1749246670179,-988.23,0.00028383,5]
[364806618,1749246670188,-640.37,0.00028383,5]
[364806619,1749246670197,-693.56,0.00028383,5]
[364806620,1749246670207,-742.17,0.00028383,5]
[364806621,1749246670216,-1107.36,0.00028383,5]
[364806622,1749246670225,-480.0,0.00028383,5]
[364806623,1749246670235,-480.0,0.00028383,5]
[364806624,1749246670244,-480.0,0.00028383,5]
[364806625,1749246670253,-480.0,0.00028383,5]
[364806626,1749246670263,-480.0,0.00028383,5]
[364806627,1749246670272,-1024.72,0.00028383,5]
[364806628,1749246670281,-807.19,0.00028383,5]
[364806629,1749246670291,-532.18,0.00028383,5]
[364806630,1749246670303,-480.0,0.00028383,5]
[364806631,1749246670312,-480.0,0.00028383,5]
[364806632,1749246670321,-480.0,0.00028383,5]
[364806633,1749246670331,-791.89,0.00028383,5]
[364806634,1749246670341,-720.13,0.00028383,5]
[364806635,1749246670351,-480.0,0.00028383,5]
[364806636,1749246670361,-1109.46,0.00028383,5]
[364806637,1749246670371,-480.0,0.00028383,5]
[364806638,1749246670382,-486.82,0.00028383,5]
[364806639,1749246670393,-480.0,0.00028383,5]
[364806640,1749246670404,-480.0,0.00028383,5]
[364806641,1749246670413,-491.55,0.00028383,5]
[364806642,1749246670423,-480.0,0.00028383,5]
[364806643,1749246670433,-875.07,0.00028383,5]
[364806644,1749246670443,-1682.48,0.00028383,5]
[364806645,1749246670452,-485.33,0.00028383,5]
[364806646,1749246670462,-151.0,0.00028383,7]
[364806647,1749246670472,-858.22,0.00028383,5]
[364806648,1749246670482,-480.0,0.00028383,5]
[364806649,1749246670491,-787.71,0.00028383,5]
[364806650,1749246670501,-1346.81,0.00028383,5]
[364806651,1749246670511,-830.11,0.00028383,5]
[364806652,1749246670520,-480.0,0.00028383,5]
[364806653,1749246670530,-951.1,0.00028383,5]
[364806654,1749246670540,-665.78,0.00028383,5]
[364806655,1749246670550,-1000.0,0.00028383,5]
[364806656,1749246670560,-864.11,0.00028383,5]
[364806657,1749246670570,-898.25,0.00028383,5]
[364806658,1749246670579,-1665.9,0.00028383,5]
[364806659,1749246670590,-480.0,0.00028383,5]
[364806660,1749246670600,-151.0,0.00028383,7]
[364806661,1749246670610,-922.04,0.00028383,5]
[364806662,1749246670623,-151.0,0.00028383,7]
[364806663,1749246670632,-480.0,0.00028383,5]
[364806664,1749246670642,-507.1,0.00028383,5]
[364806665,1749246670652,-503.58,0.00028383,5]
[364806666,1749246670662,-480.0,0.00028383,5]
[364806667,1749246670672,-480.0,0.00028383,5]
[364806668,1749246670682,-151.0,0.00028383,7]
[364806669,1749246670692,-480.0,0.00028383,5]
[364806670,1749246670701,-857.71,0.00028383,5]
[364806671,1749246670711,-881.94,0.00028383,5]
[364806672,1749246670720,-480.0,0.00028383,5]
[364806673,1749246670730,-480.0,0.00028383,5]
[364806674,1749246670741,-3871.62,0.00028383,5]
[364806675,1749246670750,-151.0,0.00028383,7]
[364806676,1749246670760,-1276.99,0.00028383,5]
[364806677,1749246670770,-151.0,0.00028383,7]
[364806678,1749246670780,-700.22,0.00028383,5]
[364806679,1749246670790,-961.98,0.00028383,5]
[364806680,1749246670799,-151.0,0.00028383,7]
[364806681,1749246670811,-480.0,0.00028383,5]
[364806682,1749246670820,-151.0,0.00028383,7]
[364806683,1749246670831,-800.25,0.00028383,5]
[364806684,1749246670841,-2314.74,0.00028383,5]
[364806685,1749246670851,-480.0,0.00028383,5]
[364806686,1749246670861,-151.0,0.00028383,7]
[364806687,1749246670870,-2288.89,0.00028383,5]
[364806688,1749246670880,-6306.05,0.00028383,5]
[364806689,1749246670890,-151.0,0.00028383,7]
[364806690,1749246670900,-991.79,0.00028383,5]
[364806691,1749246670910,-480.0,0.00028383,5]
[364806692,1749246670920,-3309.41,0.00028383,5]
[364806693,1749246670930,-362.506305,0.00028383,7]
[364806694,1749246670940,-6270.48,0.00028383,5]
[364806695,1749246670950,-658.77,0.00028383,5]
[364806696,1749246670960,-1547.23,0.00028383,5]
[364806697,1749246670969,-362.506305,0.00028383,7]
[364806698,1749246670979,-480.0,0.00028383,5]
[364806699,1749246670989,-299.478745,0.00028383,7]
[364806700,1749246670999,-656.6,0.00028383,5]
[364806701,1749246671009,-678.5,0.00028383,5]
[364806702,1749246671019,-697.1,0.00028383,5]
[364806703,1749246671029,-3290.58,0.00028383,5]
[364806704,1749246671039,-480.0,0.00028383,5]
[364806705,1749246671049,-480.0,0.00028383,5]
[364806706,1749246671059,-480.0,0.00028383,5]
[364806707,1749246671069,-41825.2,0.00028383,5]
[364806708,1749246671080,-4175.73,0.00028383,5]
[364806709,1749246671089,-757.81,0.00028383,5]
[364806710,1749246671099,-827.83,0.00028383,5]
[364806711,1749246671109,-1000.0,0.00028383,5]
[364806712,1749246671119,-480.0,0.00028383,5]
[364806713,1749246671128,-2642.31,0.00028383,5]
[364806714,1749246671138,-480.0,0.00028383,5]
[364806715,1749246671148,-494.1,0.00028383,5]
[364806716,1749246671158,-1402.22,0.00028383,5]
[364806717,1749246671167,-593.19,0.00028383,5]
[364806718,1749246671177,-915.82,0.00028383,5]
[364806719,1749246671187,-480.0,0.00028383,5]
[364806720,1749246671197,-548.04,0.00028383,5]
[364806721,1749246671208,-7246.33,0.00028383,5]
[364806722,1749246671218,-1038.48,0.00028383,5]
[364806723,1749246671228,-386.66876,0.00028383,7]
[364806724,1749246671238,-1012.51,0.00028383,5]
[364806725,1749246671249,-152.238814,0.00028383,7]
[364806726,1749246671259,-480.0,0.00028383,5]
[364806727,1749246671268,-1063.91,0.00028383,5]
[364806728,1749246671278,-480.0,0.00028383,5]
[364806729,1749246671288,-1000.0,0.00028383,2]
[364806730,1749246671298,-386.66876,0.00028383,7]
[364806731,1749246671308,-151.0,0.00028383,7]
[364806732,1749246671318,-2287.44,0.00028383,5]
[364806733,1749246671328,-480.0,0.00028383,5]
[364806734,1749246671337,-1253.57,0.00028383,5]
[364806735,1749246671347,-480.0,0.00028383,5]
[364806736,1749246671357,-151.0,0.00028383,7]
[364806737,1749246671367,-543.96,0.00028383,5]
[364806738,1749246671377,-888.06,0.00028383,5]
[364806739,1749246671387,-193.357012,0.00028383,7]
[364806740,1749246671397,-480.0,0.00028383,5]
[364806741,1749246671408,-706.17,0.00028383,5]
[364806742,1749246671417,-193.357012,0.00028383,7]
[364806743,1749246671428,-1329.463067,0.00028383,7]
[364806744,1749246671438,-151.0,0.00028383,7]
[364806745,1749246671448,-2321.6,0.00028383,5]
[364806746,1749246671458,-1717.97,0.00028383,5]
[364806747,1749246671468,-151.0,0.00028383,7]
[364806748,1749246671479,-1329.463067,0.00028383,7]
[364806749,1749246671489,-9864.62,0.00028383,5]
[364806750,1749246671498,-480.0,0.00028383,5]
[364806751,1749246671508,-151.0,0.00028383,7]
[364806752,1749246671518,-480.0,0.00028383,5]
[364806753,1749246671528,-915.9,0.00028383,5]
[364806754,1749246671538,-1064.72,0.00028383,5]
[364806755,1749246671548,-1463.3,0.00028383,5]
[364806756,1749246671558,-2703.77,0.00028383,5]
[364806757,1749246671568,-1379.5,0.00028383,5]
[364806758,1749246671578,-480.0,0.00028383,5]
[364806759,1749246671588,-724.32,0.00028383,5]
[364806760,1749246671598,-1053.29,0.00028383,5]
[364806761,1749246671608,-151.0,0.00028383,7]
[364806762,1749246671623,-2062.4,0.00028383,5]
[364806763,1749246671632,-1152.25,0.00028383,5]
[364806764,1749246671642,-511.1,0.00028383,5]
[364806765,1749246671651,-480.0,0.00028383,5]
[364806766,1749246671663,-2113.21,0.00028383,5]
[364806767,1749246671673,-950.72,0.00028383,5]
[364806768,1749246671682,-1038.72,0.00028383,5]
[364806769,1749246671694,-480.0,0.00028383,5]
[364806770,1749246671703,-682.89,0.00028383,5]
[364806771,1749246671714,-545.76,0.00028383,5]
[364806772,1749246671723,-2532.67,0.00028383,5]
[364806773,1749246671732,-3584.03,0.00028383,5]
[364806774,1749246671742,-480.0,0.00028383,5]
[364806775,1749246671751,-528.47,0.00028383,5]
[364806776,1749246671761,-548.2,0.00028383,5]
[364806777,1749246671770,-480.0,0.00028383,5]
[364806778,1749246671779,-720.56,0.00028383,5]
[364806779,1749246671788,-961.24,0.00028383,5]
[364806780,1749246671798,-480.0,0.00028383,5]
[364806781,1749246671808,-948.47,0.00028383,5]
[364806782,1749246671819,-618.38,0.00028383,5]
[364806783,1749246671828,-480.0,0.00028383,5]
[364806784,1749246671837,-1184.48,0.00028383,5]
[364806785,1749246671847,-480.0,0.00028383,5]
[364806786,1749246671856,-729.47,0.00028383,5]
[364806787,1749246671866,-2291.9,0.00028383,5]
[364806788,1749246671875,-480.0,0.00028383,5]
[364806789,1749246671885,-480.0,0.00028383,5]
[364806790,1749246671894,-558.53,0.00028383,5]
[364806791,1749246671904,-151.0,0.00028383,7]
[364806792,1749246671913,-480.0,0.00028383,5]
[364806793,1749246671923,-151.0,0.00028383,7]
[364806794,1749246671932,-1173.51,0.00028383,5]
[364806795,1749246671942,-1217.86,0.00028383,5]
[364806796,1749246671951,-480.0,0.00028383,5]
[364806797,1749246671960,-661.15,0.00028383,5]
[364806798,1749246671970,-151.0,0.00028383,7]
[364806799,1749246671980,-2825.65,0.00028383,5]
[364806800,1749246671989,-782.79,0.00028383,5]
[364806801,1749246671999,-480.0,0.00028383,5]
[364806802,1749246672009,-866.52,0.00028383,5]
[364806803,1749246672019,-978.55,0.00028383,5]
[364806804,1749246672028,-480.0,0.00028383,5]
[364806805,1749246672037,-480.0,0.00028383,5]
[364806806,1749246672047,-480.0,0.00028383,5]
[364806807,1749246672056,-3108.49,0.00028383,5]
[364806808,1749246672066,-480.0,0.00028383,5]
[364806809,1749246672076,-1300.77,0.00028383,5]
[364806810,1749246672085,-480.0,0.00028383,5]
[364806811,1749246672095,-2680.22,0.00028383,5]
[364806812,1749246672104,-480.0,0.00028383,5]
[364806813,1749246672114,-151.0,0.00028383,7]
[364806814,1749246672124,-1437.98,0.00028383,5]
[364806815,1749246672133,-519.51,0.00028383,5]
[364806816,1749246672143,-151.0,0.00028383,7]
[364806817,1749246672152,-509.64,0.00028383,5]
[364806818,1749246672162,-480.0,0.00028383,5]
[364806819,1749246672172,-9520.94,0.00028383,5]
[364806820,1749246672181,-480.0,0.00028383,5]
[364806821,1749246672191,-480.0,0.00028383,5]
[364806822,1749246672200,-480.0,0.00028383,5]
[364806823,1749246672210,-480.0,0.00028383,5]
[364806824,1749246672219,-1288.3,0.00028383,5]
[364806825,1749246672228,-1532.11,0.00028383,5]
[364806826,1749246672238,-539.78,0.00028383,5]
[364806827,1749246672248,-1411.14,0.00028383,5]
[364806828,1749246672257,-1226.65,0.00028383,5]
[364806829,1749246672267,-480.0,0.00028383,5]
[364806830,1749246672276,-11376.28,0.00028383,5]
[364806831,1749246672286,-480.0,0.00028383,5]
[364806832,1749246672295,-745.67,0.00028383,5]
[364806833,1749246672306,-279.30970295,0.00028383,5]
[364806834,1749246672315,-480.0,0.00028383,5]
[364806835,1749246672325,-1096.92,0.00028383,5]
[364806836,1749246672335,-480.0,0.00028383,5]
[364806837,1749246672344,-480.0,0.00028383,5]
[364806838,1749246672354,-1261.97,0.00028383,5]
[364806839,1749246672364,-1473.067164,0.00028383,7]
[364806840,1749246672374,-1625.92,0.00028383,5]
[364806841,1749246672384,-480.0,0.00028383,5]
[364806842,1749246672393,-480.0,0.00028383,5]
[364806843,1749246672403,-550.84,0.00028383,5]
[364806844,1749246672413,-483.94,0.00028383,5]
[364806845,1749246672423,-5339.23,0.00028383,5]
[364806846,1749246672433,-1473.067164,0.00028383,7]
[364806847,1749246672443,-1348.87,0.00028383,5]
[364806848,1749246672453,-340.484986,0.00028383,5]
[364806849,1749246672463,-828.64,0.00028383,5]
[364806850,1749246672473,-480.0,0.00028383,5]
[364806851,1749246672483,-489.87,0.00028383,5]
[364806852,1749246672493,-1697.96,0.00028383,5]
[364806853,1749246672503,-210.435843,0.00028383,7]
[364806854,1749246672513,-1051.18,0.00028383,5]
[364806855,1749246672524,-1189.86,0.00028383,5]
[364806856,1749246672535,-480.0,0.00028383,2]
[364806857,1749246672545,-633.51,0.00028383,5]
[364806858,1749246672556,-480.0,0.00028383,5]
[364806859,1749246672566,-210.435843,0.00028383,7]
[364806860,1749246672826,-480.0,0.00028383,5]
[364806861,1749246672851,-480.0,0.00028383,5]
[364806862,1749246672862,-2333.6,0.00028383,5]
[364806863,1749246672872,-480.0,0.00028383,2]
[364806864,1749246672882,-551.67,0.00028383,5]
[364806865,1749246672892,-765.3,0.00028383,5]
[364806866,1749246672903,-2754.5,0.00028383,5]
[364806867,1749246672914,-1846.24,0.00028383,5]
[364806868,1749246672923,-1116.679016,0.00028383,7]
[364806869,1749246672933,-1431.03,0.00028383,5]
[364806870,1749246672944,-1044.17,0.00028383,5]
[364806871,1749246672954,-1138.5,0.00028383,5]
[364806872,1749246672964,-1116.679016,0.00028383,7]
[364806873,1749246672975,-480.0,0.00028383,5]
[364806874,1749246672984,-896.47593492,0.00028384,2]
[364806875,1749246672994,-150.0,0.00028398,2]
[364806876,1749246673004,-501.22771874,0.00028421,5]
[364806877,1749246673013,-9584.69991423,0.00028425,2]
[364806878,1749246673023,-155.017,0.00028433,2]
[364806879,1749246673032,-944.0,0.00028433,2]
[364806880,1749246673042,-1164.0,0.00028433,2]
[364806881,1749246673051,-636.0,0.00028433,2]
[364806882,1749246673061,-801.0,0.00028433,2]
[364806883,1749246673070,-589.0,0.00028433,2]
[364806884,1749246673080,-557.0,0.00028433,2]
[364806885,1749246673091,-1999.0,0.00028433,2]
[364806886,1749246673100,-926.0,0.00028433,2]
[364806887,1749246673110,-1274.0,0.00028433,2]
[364806888,1749246673120,-1391.55,0.00028433,2]
[364806889,1749246673130,-155.0,0.00028433,2]
[364806890,1749246673139,-4081.0,0.00028433,2]
[364806891,1749246673148,-852.0,0.00028433,2]
[364806892,1749246673157,-922.88,0.00028433,2]
[364806893,1749246673167,-7017.0,0.00028433,2]
[364806894,1749246673177,-14249.94722186,0.00028447,2]
[364806895,1749246673187,-193.66689883,0.00028447,5]
[364806896,1749246673197,-1820.59071614,0.00028447,2]
[364806897,1749246673207,-322.73174322,0.00028447,2]
[364806898,1749246673217,-169.71507828,0.00028447,2]
[364806899,1749246673227,-162.53229819,0.00028447,2]
[364806900,1749246673237,-215.56,0.00028449,2]
[364806901,1749246673247,-796.0,0.00028463,2]
[364806902,1749246673257,-1000.0,0.0002847,2]
[364806903,1749246673266,-500.0,0.0002847,2]
[364806904,1749246673275,-161.63440604,0.00028474,2]
[364806905,1749246673285,-500.0,0.0002852,5]
[364806906,1749246673295,-150.0,0.0002852,5]
[364806907,1749246673305,-479.81109543,0.00028521,19]
[364806908,1749246673314,-9405.7727893,0.00028533,2]
[364806909,1749246673324,-1302.85,0.00028546,5]
[364806910,1749246673334,-1394.62,0.00028546,5]
[364806911,1749246673343,-1628.97,0.00028546,5]
[364806912,1749246673352,-151.0,0.00028547,7]
[364806913,1749246673362,-151.0,0.00028547,7]
[364806914,1749246673371,-480.0,0.00028547,5]
[364806915,1749246673380,-214.63189952,0.00028547,5]
[364806916,1749246673390,-600.0,0.00028547,30]
[364806917,1749246673400,-885.44,0.00028547,5]
[364806918,1749246673410,-480.0,0.00028547,5]
[364806919,1749246673420,-480.0,0.00028547,5]
[364806920,1749246673429,-480.0,0.00028547,5]
[364806921,1749246673439,-621.89,0.00028547,5]
[364806922,1749246673449,-480.0,0.00028547,5]
[364806923,1749246673458,-493.2,0.00028547,5]
[364806924,1749246673468,-480.0,0.00028547,5]
[364806925,1749246673478,-480.0,0.00028547,5]
[364806926,1749246673487,-480.0,0.00028547,5]
[364806927,1749246673497,-248.15643598,0.00028547,5]
[364806928,1749246673506,-480.0,0.00028547,5]
[364806929,1749246673515,-480.0,0.00028547,5]
[364806930,1749246673527,-480.0,0.00028547,5]
[364806931,1749246673536,-472.40955291,0.00028547,5]
[364806932,1749246673546,-480.0,0.00028547,5]
[364806933,1749246673556,-480.0,0.00028547,5]
[364806934,1749246673565,-320.75421426,0.00028547,5]
[364806935,1749246673575,-480.0,0.00028547,5]
[364806936,1749246673585,-480.0,0.00028547,5]
[364806937,1749246673594,-480.0,0.00028547,5]
[364806938,1749246673604,-480.0,0.00028547,5]
[364806939,1749246673615,-1372.88,0.00028547,5]
[364806940,1749246673628,-964.82,0.00028547,5]
[364806941,1749246673638,-480.0,0.00028547,5]
[364806942,1749246673647,-748.95,0.00028547,5]
[364806943,1749246673656,-480.0,0.00028547,5]
[364806944,1749246673667,-480.0,0.00028547,5]
[364806945,1749246673676,-498.72,0.00028547,5]
[364806946,1749246673685,-480.0,0.00028547,5]
[364806947,1749246673697,-480.0,0.00028547,5]
[364806948,1749246673706,-944.11,0.00028547,5]
[364806949,1749246673716,-521.05,0.00028547,5]
[364806950,1749246673725,-480.0,0.00028547,5]
[364806951,1749246673735,-1064.79,0.00028547,5]
[364806952,1749246673744,-480.0,0.00028547,5]
[364806953,1749246673753,-480.0,0.00028547,5]
[364806954,1749246673762,-1499.94,0.00028547,5]
[364806955,1749246673771,-742.55,0.00028547,5]
[364806956,1749246673781,-480.0,0.00028547,5]